bitfinex/quotes_ETHUSD_20250329
["timestamp","ask_amount","ask_price","bid_price","bid_amount"]
[1743269046198,4.45016683,1809.7,1809.0,6.919]
[1743269046393,3.6792658,1809.5,1809.0,6.919]
[1743269046990,3.0,1809.2,1808.5,11.05858]
[1743269047193,0.2757,1809.4,1809.0,5.52778]
[1743269047354,0.77090103,1809.4,1809.0,5.52778]
[1743269047550,0.77090103,1809.4,1808.9,5.52821]
[1743269047986,0.77090103,1809.4,1809.0,5.52791]
[1743269048186,0.49520103,1809.4,1809.2,5.52716]
[1743269048392,0.49520103,1809.4,1809.3,5.52699]
[1743269048592,0.49520103,1809.4,1809.2,5.52716]
[1743269048794,3.6792658,1809.6,1808.8,5.52849]
[1743269048997,3.6792658,1809.4,1808.8,5.52841]
[1743269049292,0.2757,1809.5,1809.0,5.52789]
[1743269049458,0.2757,1809.5,1808.9,5.52813]
[1743269049661,3.6792658,1809.4,1808.7,5.5286]
[1743269049869,0.2757,1809.1,1808.6,5.52909]
[1743269050064,0.2757,1809.1,1808.5,5.52931]
[1743269050263,0.2757,1809.1,1808.7,5.52867]
[1743269050665,0.2757,1809.1,1808.9,5.52809]
[1743269051206,0.2757,1809.1,1808.7,5.52867]
[1743269051568,0.3,1809.5,1808.7,5.52867]
[1743269051569,0.3,1809.5,1808.7,0.552867]
[1743269051883,0.2757,1809.4,1809.2,5.52718]
[1743269052082,0.2757,1809.4,1809.1,5.5276]
[1743269052579,0.2757,1809.4,1809.1,5.52745]
[1743269052893,3.9549658,1809.4,1808.7,2.086467]
[1743269053094,0.39549658,1809.3,1808.8,5.52842]
[1743269053277,3.9549658,1809.2,1808.6,5.52899]
[1743269053471,3.9549658,1809.2,1808.5,5.52941]
[1743269053862,3.9549658,1809.2,1808.6,5.52909]
[1743269054066,0.49522339,1809.1,1808.6,5.52909]
[1743269054470,0.49522339,1809.1,1808.7,5.52883]
[1743269054667,0.49522339,1809.1,1808.4,5.52961]
[1743269054864,0.49522339,1809.1,1808.7,5.52862]
[1743269055102,0.49522339,1809.1,1808.6,5.5291]
[1743269055291,0.49522339,1809.1,1808.6,11.05807]
[1743269055489,3.9549658,1809.2,1808.6,5.52894]
[1743269055681,4.65046238,1809.2,1808.5,5.52926]
[1743269056208,4.65046238,1809.2,1808.6,5.52898]
[1743269056392,4.65046238,1809.2,1808.5,5.52939]
[1743269056594,4.65046238,1809.2,1808.5,11.05872]
[1743269056807,4.65046238,1809.2,1808.5,5.52933]
[1743269057104,4.65046238,1809.2,1808.5,11.05857]
[1743269057314,3.6792658,1808.8,1808.3,5.5299]
[1743269057514,0.2757,1808.7,1808.1,5.53055]
[1743269057680,5.52927,1808.6,1807.9,13.98286]
[1743269057878,11.05914,1808.5,1808.1,5.53052]
[1743269058083,11.05911,1808.5,1808.1,5.53052]
[1743269058323,3.6792658,1808.6,1808.1,5.53052]
[1743269058479,3.6792658,1808.6,1808.1,11.06101]
[1743269058684,3.6792658,1808.6,1808.1,11.06099]
[1743269059215,3.6792658,1808.6,1808.2,5.53031]
[1743269059721,0.2757,1808.7,1808.4,5.52952]
[1743269059885,0.2757,1808.7,1808.2,1.10608]
[1743269060085,0.2757,1808.7,1808.2,5.53019]
[1743269060312,5.52929,1808.6,1808.2,5.53019]
[1743269060518,5.5298,1808.4,1808.1,5.5306]
[1743269060702,5.53006,1808.3,1808.0,5.53092]
[1743269061419,5.5305,1808.2,1807.9,5.53124]
[1743269061583,0.2757,1808.2,1807.9,5.53124]
[1743269061789,0.2757,1808.2,1807.8,5.53156]
[1743269061790,11.33673,1808.2,1807.8,11.063]
[1743269062019,5.5318,1807.8,1807.3,1.6044]
[1743269062223,11.06365,1807.8,1807.4,5.53253]
[1743269062385,5.80677,1808.0,1807.6,5.53219]
[1743269062719,11.06294,1807.9,1807.5,5.53238]
[1743269063023,0.2757,1808.0,1807.4,5.5328]
[1743269063024,5.53159,1807.8,1807.4,5.5328]
[1743269063331,5.53215,1807.7,1807.3,5.53307]
[1743269063618,5.5322,1807.6,1807.3,5.53307]
[1743269063784,5.80827,1807.5,1807.1,12.45161]
[1743269063984,5.80827,1807.5,1807.1,17.98521]
[1743269064320,5.53194,1807.7,1807.3,5.53295]
[1743269064505,5.5323,1807.6,1807.2,5.53342]
[1743269064690,5.53281,1807.4,1807.1,5.53368]
[1743269065086,5.53243,1807.6,1807.2,5.5334]
[1743269065087,5.53251,1807.5,1807.2,5.5334]
[1743269065286,5.53255,1807.5,1807.1,5.53372]
[1743269065516,11.06533,1807.5,1807.1,5.53361]
[1743269065704,5.53224,1807.6,1807.2,11.06651]
[1743269065897,5.53212,1807.7,1807.3,5.53287]
[1743269066100,5.53212,1807.7,1807.3,11.06585]
[1743269066305,5.53212,1807.7,1807.3,5.53287]
[1743269066505,11.06419,1807.7,1807.3,5.53287]
[1743269066803,5.5322,1807.6,1807.3,5.53287]
[1743269067007,5.5322,1807.6,1807.2,11.06665]
[1743269067593,5.5322,1807.6,1807.3,5.5331]
[1743269068208,11.06401,1807.7,1807.3,5.5331]
[1743269068725,5.53241,1807.6,1807.2,5.5334]
[1743269068902,0.2757,1807.4,1806.8,1.13136621]
[1743269069103,5.53418,1807.0,1806.6,5.53512]
[1743269069427,5.81176,1806.4,1806.0,5.53691]
[1743269069633,5.53659,1806.2,1805.8,5.53768]
[1743269069923,9.2154358,1806.3,1806.0,5.53703]
[1743269070126,9.20095974,1806.3,1805.9,5.53737]
[1743269070332,5.81161,1806.4,1806.0,5.53694]
[1743269070529,5.81161,1806.4,1805.9,11.07458]
[1743269070830,9.2156158,1806.3,1805.9,5.5372]
[1743269070994,3.6792658,1806.3,1806.1,5.53668]
[1743269071195,11.34767,1806.4,1806.0,5.53694]
[1743269071502,3.6792658,1806.3,1805.8,5.5377]
[1743269071701,3.6792658,1806.0,1805.5,5.53863]
[1743269071919,3.6792658,1806.2,1805.8,5.5375]
[1743269072119,3.6792658,1806.2,1805.4,8.5234]
[1743269072120,9.4908758,1806.4,1806.0,5.53698]
[1743269072292,0.2757,1806.4,1806.1,5.53664]
[1743269072495,0.2757,1806.4,1806.2,5.53648]
[1743269073107,0.2757,1806.4,1806.2,11.07285]
[1743269073440,3.6792658,1806.6,1806.2,1.107285]
[1743269073612,0.2757,1806.7,1806.0,5.53706]
[1743269073932,3.6792658,1806.6,1806.1,5.53666]
[1743269074291,3.6792658,1806.6,1806.2,11.0726]
[1743269074491,0.2757,1806.7,1805.9,7.1418]
[1743269074692,0.2757,1806.9,1806.6,5.53514]
[1743269074989,0.2757,1806.9,1806.5,5.53554]
[1743269075403,0.2757,1806.9,1806.6,5.53511]
[1743269076406,0.2757,1806.9,1806.3,14.02585]
[1743269076610,0.2757,1806.9,1806.3,11.0719]
[1743269076611,3.6792658,1806.8,1806.3,11.0719]
[1743269076798,3.6792658,1806.8,1806.4,5.53585]
[1743269077000,0.2757,1806.9,1806.6,5.53503]
[1743269077329,0.2757,1806.9,1806.5,5.53553]
[1743269077497,3.6792658,1806.8,1806.3,5.53614]
[1743269077699,3.6792658,1806.8,1806.4,5.53573]
[1743269078540,0.2757,1806.9,1806.4,1.107189]
[1743269078695,0.2757,1806.9,1806.6,5.53499]
[1743269078898,0.2757,1806.9,1806.6,11.07008]
[1743269079338,0.2757,1806.9,1806.5,5.53551]
[1743269079736,0.2757,1806.9,1806.4,5.53579]
[1743269079941,3.6792658,1806.8,1806.4,5.53579]
[1743269080240,3.6792658,1806.8,1806.3,11.07213]
[1743269080439,3.6792658,1806.6,1805.9,6.921]
[1743269080603,5.53629,1806.3,1805.9,12.45836]
[1743269080798,9.2151758,1806.4,1806.0,5.53686]
[1743269081321,14.7512158,1806.4,1806.0,11.0738]
[1743269081531,5.53624,1806.3,1805.9,12.45835]
[1743269081733,5.53649,1806.2,1805.9,12.45835]
[1743269082250,5.53679,1806.1,1805.7,5.53796]
[1743269082403,5.5371,1806.0,1805.6,5.53821]
[1743269082603,3.6792658,1805.8,1805.1,1.5699]
[1743269082903,5.53907,1805.4,1805.0,5.54002]
[1743269083107,5.53907,1805.4,1805.1,5.53983]
[1743269083334,3.6792658,1805.6,1805.1,5.53971]
[1743269083531,3.6792658,1805.6,1805.1,5.53968]
[1743269083731,3.6792658,1805.6,1805.1,11.07953]
[1743269084043,3.6792658,1805.6,1804.9,1.62529687]
[1743269084044,3.6792658,1805.6,1805.2,5.53945]
[1743269084252,3.6792658,1805.6,1805.1,11.07956]
[1743269084414,3.6792658,1805.6,1805.2,5.53945]
[1743269084614,3.6792658,1805.6,1805.1,11.07942]
[1743269084837,3.6792658,1805.6,1805.1,5.53969]
[1743269085047,3.6792658,1805.6,1805.0,5.54016]
[1743269085845,3.6792658,1805.6,1804.9,1.5699]
[1743269086145,3.6792658,1805.6,1805.3,5.53922]
[1743269086449,0.2757,1805.7,1805.3,6.647104]
[1743269086644,0.2757,1805.7,1805.3,5.53923]
[1743269087046,0.2757,1805.7,1805.4,5.53879]
[1743269087207,0.2757,1805.7,1805.2,5.53927]
[1743269087608,0.2757,1805.7,1805.4,5.53886]
[1743269087847,0.2757,1805.7,1805.4,5.53878]
[1743269088018,0.2757,1805.7,1805.3,5.5392]
[1743269088342,3.6792658,1805.8,1805.5,5.53857]
[1743269088542,0.2757,1805.9,1805.5,11.07703]
[1743269088747,0.2757,1805.9,1805.5,5.53846]
[1743269088950,0.2757,1805.9,1805.5,11.07696]
[1743269089122,0.2757,1805.9,1805.5,11.07698]
[1743269089314,3.6792658,1805.8,1805.3,5.53917]
[1743269089516,3.9549658,1806.1,1805.4,0.05538962]
[1743269089715,5.53637,1806.3,1805.9,5.53727]
[1743269089931,5.53631,1806.3,1805.9,5.53719]
[1743269090152,5.53655,1806.2,1805.8,5.5377]
[1743269090351,5.53725,1806.0,1805.7,5.5379]
[1743269090551,5.5388,1805.5,1805.1,5.53974]
[1743269090718,5.53837,1805.6,1805.2,5.53927]
[1743269090915,5.81374,1805.7,1805.3,5.53911]
[1743269091415,5.81374,1805.7,1805.4,5.53882]
[1743269091660,0.2757,1805.7,1805.4,11.07759]
[1743269092029,3.6792658,1805.9,1805.5,5.53849]
[1743269092234,3.6792658,1805.9,1805.5,11.07691]
[1743269092426,0.2757,1806.0,1805.6,5.53804]
[1743269092632,0.2757,1806.0,1805.7,5.53785]
[1743269092950,0.2757,1806.0,1805.7,5.53783]
[1743269093143,0.2757,1806.0,1805.8,5.53755]
[1743269093452,3.9549658,1806.3,1805.8,11.0751]
[1743269093658,4.65046238,1806.3,1805.8,5.53755]
[1743269094160,4.65046238,1806.3,1805.8,11.07511]
[1743269094357,4.65046238,1806.3,1805.6,5.53828]
[1743269094524,4.65046238,1806.3,1805.7,5.53798]
[1743269094734,4.65046238,1806.3,1805.7,11.07589]
[1743269094939,4.65046238,1806.3,1805.7,5.53785]
[1743269095140,4.65046238,1806.3,1805.8,5.53758]
[1743269095348,4.65046238,1806.3,1805.5,8.028691]
[1743269095670,0.2757,1806.3,1806.0,5.53696]
[1743269095840,0.2757,1806.3,1806.0,5.5369]
[1743269096876,3.6792658,1806.1,1805.5,6.646261]
[1743269097036,3.6792658,1806.1,1805.3,6.92]
[1743269097373,3.6792658,1806.1,1805.7,5.53787]
[1743269097744,0.49366673,1806.2,1805.5,5.53862]
[1743269097940,0.49366673,1806.2,1805.8,5.53755]
[1743269098341,0.2757,1806.3,1806.1,5.53679]
[1743269098577,0.2757,1806.3,1806.0,5.53708]
[1743269098740,0.2757,1806.3,1806.0,11.07407]
[1743269099375,3.9549658,1806.7,1806.1,5.53653]
[1743269099580,4.39001204,1806.7,1806.1,5.53653]
[1743269099874,4.39001204,1806.7,1806.1,11.0732]
[1743269100236,3.9549658,1806.7,1806.2,5.53644]
[1743269100469,3.9549658,1806.7,1806.1,5.53662]
[1743269100640,0.49484467,1806.6,1806.2,5.53618]
[1743269100840,0.49484467,1806.6,1806.1,5.53673]
[1743269101035,0.49484467,1806.6,1806.1,11.07327]
[1743269101237,0.49484467,1806.6,1806.1,5.53663]
[1743269101478,0.49484467,1806.6,1805.7,7.16719]
[1743269101684,3.9549658,1805.9,1805.4,5.53893]
[1743269101847,3.9549658,1805.9,1805.3,5.53913]
[1743269102192,3.6792658,1805.7,1805.1,11.07949]
[1743269102382,3.6792658,1805.7,1805.2,5.53951]
[1743269102683,3.6792658,1805.7,1805.0,8.5484]
[1743269102684,4.04719238,1805.7,1805.1,11.07946]
[1743269102894,5.53843,1805.6,1805.2,5.53938]
[1743269103060,5.53863,1805.5,1805.2,5.53938]
[1743269103255,0.49484467,1805.6,1805.0,7.1695]
[1743269103471,0.49484467,1805.6,1805.1,0.77234214]
[1743269103652,0.49484467,1805.6,1805.5,5.53863]
[1743269104277,3.2757,1806.2,1805.6,5.53817]
[1743269104587,0.2757,1806.2,1805.9,5.53711]
[1743269104889,0.2757,1806.2,1805.9,11.07433]
[1743269105082,3.2757,1806.4,1806.0,5.53705]
[1743269105283,3.2757,1806.4,1806.1,5.53663]
[1743269105284,0.2757,1806.4,1806.1,5.53663]
[1743269105444,0.49482163,1806.3,1806.1,11.07326]
[1743269105644,0.49482163,1806.3,1806.2,5.53648]
[1743269105876,0.49482163,1806.3,1806.0,5.53692]
[1743269106147,0.49482163,1806.3,1805.1,29.304]
[1743269106148,0.2757,1806.2,1805.4,1.6225]
[1743269106346,3.6792658,1805.9,1805.2,11.07882]
[1743269106546,3.6792658,1805.7,1805.1,5.53975]
[1743269106788,5.53877,1805.5,1805.2,5.53953]
[1743269106975,5.53877,1805.5,1805.1,11.07939]
[1743269107283,3.6792658,1805.5,1804.9,7.16287]
[1743269107487,0.2757,1805.4,1804.9,5.54037]
[1743269107645,0.2757,1805.4,1804.9,11.0807]
[1743269107844,5.53937,1805.3,1804.9,11.0807]
[1743269108290,3.6792658,1805.3,1804.6,1.5836]
[1743269108452,3.6792658,1805.1,1804.5,5.5417]
[1743269108779,5.53956,1805.2,1804.8,11.08126]
[1743269108982,0.49482163,1805.2,1804.9,5.54045]
[1743269109349,0.49482163,1805.2,1804.9,5.54035]
[1743269109587,0.49482163,1805.2,1805.1,5.53985]
[1743269109757,0.2757,1806.2,1805.6,5.53803]
[1743269109962,0.2757,1806.2,1805.5,5.53856]
[1743269110174,0.2757,1806.2,1805.7,5.5379]
[1743269110484,0.2757,1806.2,1805.4,6.917]
[1743269110653,0.2757,1806.2,1805.7,5.53799]
[1743269111063,0.2757,1806.2,1805.7,11.07588]
[1743269111469,0.2757,1806.2,1805.7,1.107588]
[1743269111783,0.2757,1806.5,1806.0,5.53709]
[1743269111970,0.2757,1806.5,1805.9,5.53732]
[1743269112590,0.2757,1806.5,1805.9,11.07457]
[1743269112755,0.2757,1806.5,1805.6,5.53832]
[1743269112961,0.2757,1806.5,1806.1,5.53655]
[1743269113191,0.2757,1806.5,1806.0,5.53707]
[1743269113524,0.2757,1806.5,1806.0,11.07398]
[1743269113654,0.2757,1806.5,1806.1,5.53653]
[1743269113847,0.2757,1806.5,1806.2,5.53633]
[1743269114491,0.2757,1806.5,1806.2,11.07262]
[1743269114686,29.5827,1806.7,1806.2,11.07262]
[1743269114873,3.0,1806.6,1805.9,5.53722]
[1743269115058,5.53659,1806.2,1805.8,5.53757]
[1743269115257,5.53695,1806.1,1805.7,5.5379]
[1743269115472,5.53695,1806.1,1805.7,11.07575]
[1743269115672,5.53695,1806.1,1805.8,5.5377]
[1743269115887,5.53649,1806.2,1805.9,5.53736]
[1743269116307,5.53649,1806.2,1805.6,8.4986]
[1743269116308,5.53679,1806.1,1805.7,5.53785]
[1743269116589,5.53649,1806.2,1805.8,5.53766]
[1743269116758,5.5362,1806.3,1805.9,11.07444]
[1743269116959,5.5362,1806.3,1806.0,5.53707]
[1743269117302,0.2757,1806.5,1805.9,5.53737]
[1743269117697,0.2757,1806.5,1805.9,5.53722]
[1743269118268,0.2757,1806.5,1805.9,11.07447]
[1743269118563,0.2757,1806.5,1806.0,5.53709]
[1743269118821,0.2757,1806.5,1805.8,5.53766]
[1743269118978,0.60327,1806.5,1805.6,7.1217]
[1743269119304,0.60327,1806.5,1805.9,5.53728]
[1743269119503,0.60217,1806.5,1805.9,11.07447]
[1743269119681,0.60217,1806.5,1805.9,5.53723]
[1743269119892,0.2746,1806.5,1805.9,1.107491]
[1743269120081,0.2746,1806.5,1806.2,5.53632]
[1743269120288,0.2746,1806.5,1806.2,11.07265]
[1743269120487,0.2746,1806.5,1806.2,5.53632]
[1743269120715,3.739056,1806.9,1806.3,5.53613]
[1743269120886,30.07087061,1807.4,1806.5,5.53536]
[1743269121088,36.216,1807.4,1806.5,5.53536]
[1743269121289,3.0,1807.3,1806.5,5.53536]
[1743269121504,36.216,1807.4,1806.5,5.53536]
[1743269121789,36.216,1807.4,1806.5,11.07074]
[1743269122021,7.11789773,1807.3,1806.5,5.53536]
[1743269122222,3.739056,1807.2,1806.5,5.53536]
[1743269122524,0.2746,1807.0,1806.1,13.99203]
[1743269122703,3.2746,1806.8,1806.1,12.44853]
[1743269123324,0.49629773,1806.7,1806.1,12.44853]
[1743269123503,0.8733875,1806.7,1806.2,5.53648]
[1743269123704,0.49629773,1806.7,1806.4,5.53583]
[1743269124021,0.49629773,1806.7,1806.1,6.912]
[1743269124223,0.2746,1806.8,1806.2,5.53637]
[1743269124791,0.2746,1806.8,1806.2,11.07271]
[1743269124991,0.2746,1806.8,1806.5,11.07101]
[1743269125229,0.2746,1806.8,1806.5,5.53545]
[1743269125427,0.2746,1806.8,1806.5,5.53554]
[1743269125635,0.2746,1807.1,1806.5,1.107135]
[1743269125925,0.2746,1807.1,1806.6,5.53495]
[1743269126228,0.2746,1807.1,1806.5,5.53545]
[1743269126427,0.2746,1807.1,1806.5,11.07091]
[1743269126619,0.2746,1807.1,1806.6,5.53523]
[1743269126818,0.2746,1807.1,1806.6,5.53512]
[1743269127008,0.9759656,1807.1,1806.6,5.53512]
[1743269127331,0.49563926,1807.0,1806.6,5.53512]
[1743269127828,0.2746,1807.1,1806.6,5.53512]
[1743269128030,0.2746,1807.1,1806.5,5.53554]
[1743269128228,0.2746,1807.1,1806.5,11.07098]
[1743269128426,0.2746,1807.1,1805.9,1.5762]
[1743269128731,0.2746,1806.7,1806.1,5.53667]
[1743269129036,5.53605,1806.4,1806.0,5.53693]
[1743269129229,11.07216,1806.4,1806.0,5.53693]
[1743269129430,5.53605,1806.4,1806.0,5.53693]
[1743269129635,3.96643033,1806.7,1806.3,5.53602]
[1743269129800,5.80973,1806.7,1806.4,5.53567]
[1743269130635,5.53473,1806.8,1806.4,5.53584]
[1743269130809,5.53509,1806.7,1806.3,11.07223]
[1743269131001,5.53464,1806.8,1806.4,11.07153]
[1743269131497,0.20037646,1806.7,1806.5,5.53555]
[1743269132504,0.20037646,1806.7,1806.6,5.59060263]
[1743269132709,0.2746,1807.1,1806.8,5.53451]
[1743269132905,0.17484772,1807.0,1806.8,5.53451]
[1743269133132,0.17484772,1807.0,1806.9,7.11054]
[1743269133311,0.8291,1807.6,1807.0,5.53374]
[1743269133518,0.17551537,1807.5,1807.0,5.53403]
[1743269133717,0.17551537,1807.5,1807.3,5.53295]
[1743269133921,0.5545,1807.8,1807.4,11.06547]
[1743269134139,0.1616093,1807.7,1807.4,11.06547]
[1743269134353,0.1616093,1807.7,1807.6,5.53219]
[1743269134522,3.0,1807.9,1807.6,5.53219]
[1743269134719,0.1616093,1807.8,1807.4,7.17636]
[1743269134923,0.2746,1808.0,1807.4,7.17621]
[1743269135158,0.1616093,1807.9,1807.5,5.53234]
[1743269135312,8.6931493,1807.9,1807.5,11.06464]
[1743269135515,8.6931293,1807.9,1807.5,5.5323]
[1743269135858,5.53191,1807.7,1807.2,5.53323]
[1743269136149,11.06462,1807.6,1807.2,5.53323]
[1743269136314,0.1616093,1807.5,1807.2,5.53323]
[1743269136505,5.5316,1807.8,1807.1,7.23265104]
[1743269136710,0.1616093,1807.7,1807.4,11.06518]
[1743269137005,0.1616093,1807.7,1807.5,5.53247]
[1743269137211,0.1616093,1807.7,1807.4,5.53276]
[1743269137410,5.53132,1807.9,1807.4,5.53262]
[1743269137645,0.1616093,1807.6,1807.5,5.5325]
[1743269137851,5.53173,1807.8,1807.4,11.06535]
[1743269138050,0.1616093,1807.6,1807.4,5.53267]
[1743269138211,3.0,1807.9,1807.6,5.53218]
[1743269138419,3.23186,1808.0,1807.7,5.53184]
[1743269138653,29.298,1808.1,1807.5,1.6436]
[1743269138826,5.53112,1808.0,1807.6,5.53219]
[1743269139148,5.53112,1808.0,1807.5,7.17607]
[1743269139149,5.53074,1808.1,1807.7,5.5317]
[1743269139350,11.06159,1808.1,1807.7,5.5317]
[1743269139547,5.80496,1808.2,1807.8,5.53147]
[1743269139720,5.53083,1808.1,1807.6,5.53204]
[1743269139926,5.805,1808.2,1807.8,5.53145]
[1743269140126,5.805,1808.2,1807.8,5.53137]
[1743269140435,5.53067,1808.1,1807.8,5.53137]
[1743269140640,5.53067,1808.1,1807.7,5.53183]
[1743269141048,11.06151,1808.1,1807.7,5.53183]
[1743269141228,5.80498,1808.2,1807.8,5.53143]
[1743269141554,5.53076,1808.1,1807.8,5.53143]
[1743269142626,11.3356,1808.2,1807.8,5.53133]
[1743269142826,5.53067,1808.1,1807.8,5.53133]
[1743269143045,5.80498,1808.2,1807.8,5.53133]
[1743269143354,5.53038,1808.2,1807.9,5.53119]
[1743269143577,11.06043,1808.3,1807.9,5.53119]
[1743269143713,0.2746,1808.5,1808.1,5.53051]
[1743269144058,5.52987,1808.4,1808.1,5.53056]
[1743269144260,0.2746,1808.5,1808.2,5.53025]
[1743269144555,5.52893,1808.7,1808.3,11.05978]
[1743269144753,29.5636,1808.8,1808.5,5.52931]
[1743269144965,29.289,1808.8,1808.3,5.52998]
[1743269145131,29.289,1808.8,1808.4,5.52959]
[1743269145132,34.81755,1808.8,1808.4,5.52959]
[1743269145327,40.34633,1808.8,1808.4,5.52959]
[1743269145725,0.2746,1808.9,1808.4,1.105957]
[1743269145954,5.52865,1808.8,1808.4,7.17333]
[1743269146161,5.52883,1808.7,1808.4,7.17333]
[1743269146463,5.52865,1808.8,1808.4,12.70291]
[1743269146648,5.80286,1808.9,1808.4,1.6436]
[1743269146848,5.52855,1808.8,1808.4,7.17315]
[1743269147056,0.2746,1808.9,1808.6,5.52897]
[1743269147392,0.2746,1808.9,1808.5,5.52931]
[1743269147393,5.52845,1808.9,1808.5,5.52931]
[1743269147676,5.52845,1808.9,1808.4,2.360915]
[1743269147677,5.52875,1808.8,1808.4,7.890425]
[1743269147877,11.05748,1808.8,1808.4,7.17311]
[1743269148370,0.15919198,1808.7,1808.4,1.6436]
[1743269148535,5.52835,1808.9,1808.5,5.52924]
[1743269148740,0.15919198,1808.8,1808.7,5.52882]
[1743269148951,8.80226,1809.1,1808.7,11.05748]
[1743269149179,0.15919198,1809.0,1808.8,5.52847]
[1743269149380,0.15919198,1809.0,1808.6,5.52911]
[1743269149563,0.15919198,1809.0,1808.6,5.52897]
[1743269149564,11.21543198,1809.0,1808.6,5.52897]
[1743269149767,5.52823,1808.9,1808.6,5.52897]
[1743269150171,0.15919198,1808.8,1808.7,5.52868]
[1743269150368,5.80223,1809.1,1808.7,11.05736]
[1743269150678,0.15919198,1809.0,1808.8,5.5285]
[1743269150970,0.15919198,1809.0,1808.8,11.05679]
[1743269151140,5.52761,1809.1,1808.8,5.52839]
[1743269151338,5.68723198,1809.0,1808.7,1.105736]
[1743269151542,5.68723198,1809.0,1808.7,5.52882]
[1743269152045,0.15919198,1809.0,1808.7,6.63448]
[1743269152279,0.15919198,1809.0,1808.7,5.52869]
[1743269152443,5.68720198,1809.0,1808.6,11.05813]
[1743269152645,5.68720198,1809.0,1808.6,11.05794]
[1743269152844,0.15919198,1809.0,1808.7,5.52866]
[1743269153155,0.15919198,1809.0,1808.7,6.081526]
[1743269153944,0.15919198,1809.0,1808.8,5.5285]
[1743269155093,0.15919198,1809.0,1808.7,11.610226]
[1743269155453,0.15919198,1809.0,1808.8,5.52852]
[1743269155980,0.2746,1809.3,1808.8,5.52833]
[1743269156286,0.16377598,1809.2,1808.7,11.610486]
[1743269156587,0.16377598,1809.2,1808.5,0.717328]
[1743269156749,0.16377598,1809.2,1808.4,1.6436]
[1743269156750,0.2746,1809.1,1808.4,1.6436]
[1743269156954,0.2746,1809.1,1808.4,7.17333]
[1743269157153,0.16377598,1809.0,1808.8,5.5285]
[1743269157390,0.16377598,1809.0,1808.9,5.52822]
[1743269157548,5.52735,1809.2,1808.9,5.52822]
[1743269157756,0.16377598,1809.1,1808.8,11.05678]
[1743269158083,11.05482,1809.2,1808.8,5.52837]
[1743269158283,0.16377598,1809.0,1808.9,7.16489]
[1743269158470,5.52706,1809.3,1808.9,12.693]
[1743269158672,0.16377598,1809.0,1808.9,12.693]
[1743269158852,11.05422,1809.3,1808.9,12.693]
[1743269159057,0.16377598,1809.0,1808.9,7.16489]
[1743269159291,9.20880548,1809.3,1808.9,8.5448248]
[1743269159587,5.80133,1809.4,1809.1,5.52746]
[1743269159795,0.16813676,1809.3,1809.2,5.5273]
[1743269159955,5.52681,1809.4,1809.1,5.52746]
[1743269160155,0.16813676,1809.3,1809.1,5.52746]
[1743269160356,5.52768,1809.1,1808.8,5.52852]
[1743269160582,0.168537,1809.0,1808.8,5.52852]
[1743269160889,0.168537,1809.0,1808.8,11.05689]
[1743269161194,0.168537,1809.0,1808.9,5.52822]
[1743269161395,5.80163,1809.3,1809.0,5.52783]
[1743269161594,0.168537,1809.2,1809.0,5.52783]
[1743269161794,0.168537,1809.2,1809.1,5.52761]
[1743269161964,5.52686,1809.4,1809.0,5.52766]
[1743269162286,0.16875934,1809.3,1809.1,5.52757]
[1743269162489,0.16875934,1809.3,1809.1,11.05509]
[1743269162686,5.5268,1809.4,1809.0,5.52765]
[1743269162877,0.16871488,1809.2,1809.0,5.52765]
[1743269163081,5.5268,1809.4,1809.0,5.52765]
[1743269163278,0.16871488,1809.1,1809.0,6.080415]
[1743269163615,3.68159548,1809.6,1809.1,7.16438]
[1743269163769,5.52669,1809.5,1809.1,5.52758]
[1743269164095,5.52659,1809.5,1809.1,5.52748]
[1743269164297,5.52687,1809.4,1809.1,5.52743]
[1743269164594,5.52685,1809.4,1809.1,5.52743]
[1743269164757,5.52755,1809.2,1808.8,5.52841]
[1743269164961,5.52755,1809.2,1808.7,1.6136]
[1743269164962,5.52764,1809.1,1808.7,5.52867]
[1743269165175,5.52805,1809.0,1808.6,17.94201]
[1743269165374,5.52761,1809.1,1808.7,5.52858]
[1743269165559,5.52804,1809.0,1808.7,5.52858]
[1743269165758,11.05534,1809.1,1808.7,11.05726]
[1743269166069,9.20900548,1809.2,1808.9,5.52805]
[1743269166270,5.52811,1809.0,1808.7,1.13056921]
[1743269166465,5.52811,1809.0,1808.7,6.65932921]
[1743269167006,5.80161,1809.3,1808.9,5.52806]
[1743269167458,0.49649381,1809.2,1809.0,5.52776]
[1743269167660,0.49649381,1809.2,1809.0,6.080536]
[1743269167861,0.49649381,1809.2,1808.9,7.14178]
[1743269168084,0.49649381,1809.2,1809.0,5.52785]
[1743269168293,0.49649381,1809.2,1809.1,5.52761]
[1743269168591,0.49649381,1809.2,1809.0,5.52785]
[1743269168761,5.52643,1809.5,1809.2,5.52726]
[1743269169163,9.48230548,1809.6,1809.2,5.5272]
[1743269169394,5.52643,1809.5,1809.2,5.5272]
[1743269169561,9.48230548,1809.6,1809.3,5.52695]
[1743269169762,9.48230548,1809.6,1809.2,6.36423688]
[1743269169981,5.52669,1809.4,1809.0,5.52784]
[1743269170279,5.52669,1809.4,1809.0,11.05552]
[1743269170516,11.05359,1809.4,1809.0,11.05552]
[1743269170692,5.52701,1809.3,1809.0,5.52761]
[1743269170892,3.68159548,1809.4,1809.0,11.05542]
[1743269170893,9.20834548,1809.4,1809.0,11.05542]
[1743269171082,0.49733879,1809.2,1809.1,5.52761]
[1743269171283,0.49733879,1809.2,1809.0,5.52761]
[1743269171601,0.49733879,1809.2,1809.0,11.05539]
[1743269171805,0.49733879,1809.2,1809.1,5.52761]
[1743269172311,5.52673,1809.4,1809.0,6.794509]
[1743269172515,11.05431,1809.3,1808.9,7.14169]
[1743269172814,11.05435,1809.3,1808.9,12.66967]